fUST/lending_fUST_20250313
["ID","MTS","AMOUNT","RATE_DAILY","PERIOD"]
[356024178,1741804244256,-500.0,0.00022173,2]
[356024179,1741804244265,-356.86773995,0.00022173,2]
[356024180,1741804244274,-500.0,0.00022173,2]
[356024181,1741804244284,-509.74681699,0.00022173,2]
[356024182,1741804244293,-500.0,0.00022173,2]
[356024183,1741804244302,-500.0,0.00022173,2]
[356024184,1741804244311,-500.0,0.00022173,2]
[356024185,1741804244321,-500.0,0.00022173,2]
[356024186,1741804244330,-284.36258264,0.00022173,2]
[356024187,1741804244339,-500.0,0.00022173,2]
[356024188,1741804244349,-500.0,0.00022173,2]
[356024189,1741804244358,-500.0,0.00022173,2]
[356024190,1741804244369,-500.0,0.00022173,2]
[356024191,1741804244378,-500.0,0.00022173,2]
[356024192,1741804244388,-500.0,0.00022173,2]
[356024193,1741804244397,-500.0,0.00022173,2]
[356024194,1741804244406,-347.65297779,0.00022173,2]
[356024195,1741804244415,-500.0,0.00022173,2]
[356024196,1741804244424,-500.0,0.00022173,2]
[356024197,1741804244434,-530.27427019,0.00022173,2]
[356024198,1741804244443,-0.9576,0.00022173,7]
[356024199,1741804244452,-505.34826254,0.00022191,2]
[356024200,1741804244462,-500.0,0.00022191,2]
[356024201,1741804244471,-500.0,0.00022191,2]
[356024202,1741804244480,-721.84,0.00022191,2]
[356024203,1741804244490,-500.0,0.00022191,2]
[356024204,1741804244499,-500.0,0.00022191,2]
[356024205,1741804244508,-500.0,0.00022191,2]
[356024206,1741804244518,-500.0,0.00022191,2]
[356024207,1741804244527,-500.34277318,0.00022191,2]
[356024208,1741804244537,-500.0,0.00022191,2]
[356024209,1741804244549,-500.0,0.00022191,2]
[356024210,1741804244560,-500.0,0.00022191,2]
[356024211,1741804244569,-500.0,0.00022191,2]
[356024212,1741804244578,-500.0,0.00022191,2]
[356024213,1741804244588,-209.09023234,0.00022191,2]
[356024214,1741804244598,-685.26,0.00022191,2]
[356024215,1741804244607,-500.0,0.00022191,2]
[356024216,1741804244618,-597.27,0.00022191,2]
[356024217,1741804244628,-500.0,0.00022191,2]
[356024218,1741804244638,-500.0,0.00022191,2]
[356024219,1741804244647,-500.0,0.00022191,2]
[356024220,1741804244656,-500.0,0.00022191,2]
[356024221,1741804244665,-500.0,0.00022191,2]
[356024222,1741804244674,-500.0,0.00022191,2]
[356024223,1741804244683,-438.249,0.00022191,2]
[356024224,1741804244693,-500.0,0.00022191,2]
[356024225,1741804244702,-500.0,0.00022191,2]
[356024226,1741804244711,-500.0,0.00022191,2]
[356024227,1741804244721,-500.0,0.00022191,2]
[356024228,1741804244730,-500.0,0.00022191,2]
[356024229,1741804244740,-200.0,0.00022191,2]
[356024230,1741804244749,-432.93302698,0.00022191,2]
[356024231,1741804244760,-500.0,0.00022191,2]
[356024232,1741804244769,-593.0627324,0.00022191,2]
[356024233,1741804244779,-500.0,0.00022191,2]
[356024234,1741804244788,-500.0,0.00022191,2]
[356024235,1741804244797,-500.0,0.00022191,2]
[356024236,1741804244807,-500.0,0.00022191,2]
[356024237,1741804244816,-500.0,0.00022191,2]
[356024238,1741804244826,-500.0,0.00022191,2]
[356024239,1741804244835,-500.0,0.00022191,2]
[356024240,1741804244844,-515.77695533,0.00022191,2]
[356024241,1741804244853,-500.0,0.00022191,2]
[356024242,1741804244863,-500.0,0.00022191,2]
[356024243,1741804244872,-500.0,0.00022191,2]
[356024244,1741804244882,-500.0,0.00022191,2]
[356024245,1741804244891,-500.0,0.00022191,2]
[356024246,1741804244901,-500.0,0.00022191,2]
[356024247,1741804244911,-465.28335422,0.00022191,2]
[356024248,1741804244920,-500.0,0.00022191,2]
[356024249,1741804244930,-500.0,0.00022191,2]
[356024250,1741804244940,-500.0,0.00022191,2]
[356024251,1741804244949,-500.0,0.00022191,2]
[356024252,1741804244959,-500.0,0.00022191,2]
[356024253,1741804244970,-500.0,0.00022191,2]
[356024254,1741804244980,-484.49440179,0.00022191,2]
[356024255,1741804244991,-500.0,0.00022191,2]
[356024256,1741804245001,-500.0,0.00022191,2]
[356024257,1741804245012,-500.0,0.00022191,2]
[356024258,1741804245022,-500.0,0.00022191,2]
[356024259,1741804245031,-506.17,0.00022191,2]
[356024260,1741804245041,-500.0,0.00022191,2]
[356024261,1741804245051,-500.0,0.00022191,2]
[356024262,1741804245060,-523.61,0.00022191,2]
[356024263,1741804245070,-500.0,0.00022191,2]
[356024264,1741804245080,-579.10752232,0.00022191,2]
[356024265,1741804245089,-500.0,0.00022191,2]
[356024266,1741804245099,-500.0,0.00022191,2]
[356024267,1741804245108,-500.0,0.00022191,2]
[356024268,1741804245118,-500.0,0.00022191,2]
[356024269,1741804245127,-500.0,0.00022191,2]
[356024270,1741804245137,-712.35,0.00022191,2]
[356024271,1741804245147,-500.0,0.00022191,2]
[356024272,1741804245156,-500.0,0.00022191,2]
[356024273,1741804245165,-500.0,0.00022191,2]
[356024274,1741804245175,-500.0,0.00022191,2]
[356024275,1741804245185,-500.0,0.00022191,2]
[356024276,1741804245194,-500.0,0.00022191,2]
[356024277,1741804245203,-500.0,0.00022191,2]
[356024278,1741804245213,-445.71381202,0.00022191,2]
[356024279,1741804245222,-500.0,0.00022191,2]
[356024280,1741804245232,-500.0,0.00022191,2]
[356024281,1741804245241,-500.0,0.00022191,2]
[356024282,1741804245251,-500.0,0.00022191,2]
[356024283,1741804245260,-500.0,0.00022191,2]
[356024284,1741804245269,-541.07370016,0.00022191,2]
[356024285,1741804245279,-789.46,0.00022191,2]
[356024286,1741804245288,-975.12,0.00022191,2]
[356024287,1741804245298,-246.91650077,0.00022191,2]
[356024288,1741804245307,-503.57799636,0.00022191,2]
[356024289,1741804245317,-511.25787417,0.00022191,2]
[356024290,1741804245326,-500.0,0.00022191,2]
[356024291,1741804245336,-974.8,0.00022191,2]
[356024292,1741804245346,-1166.77,0.00022191,2]
[356024293,1741804245355,-500.0,0.00022191,2]
[356024294,1741804245365,-500.0,0.00022191,2]
[356024295,1741804245375,-1052.25,0.00022191,2]
[356024296,1741804245384,-500.0,0.00022191,2]
[356024297,1741804245394,-500.0,0.00022191,2]
[356024298,1741804245404,-500.0,0.00022191,2]
[356024299,1741804245413,-500.0,0.00022191,2]
[356024300,1741804245423,-500.0,0.00022191,2]
[356024301,1741804245432,-667.25,0.00022191,2]
[356024302,1741804245442,-500.0,0.00022191,2]
[356024303,1741804245452,-1500.08,0.00022191,2]
[356024304,1741804245462,-1045.51,0.00022191,2]
[356024305,1741804245471,-500.0,0.00022191,2]
[356024306,1741804245481,-324.02963386,0.00022191,2]
[356024307,1741804245490,-500.0,0.00022191,2]
[356024308,1741804245500,-500.0,0.00022191,2]
[356024309,1741804245509,-500.0,0.00022191,2]
[356024310,1741804245519,-500.0,0.00022191,2]
[356024311,1741804245529,-500.0,0.00022191,2]
[356024312,1741804245539,-500.0,0.00022191,2]
[356024313,1741804245552,-960.45,0.00022191,2]
[356024314,1741804245561,-500.0,0.00022191,2]
[356024315,1741804245571,-561.40885405,0.00022191,2]
[356024316,1741804245581,-500.0,0.00022191,2]
[356024317,1741804245592,-380.99794679,0.00022191,2]
[356024318,1741804245602,-500.0,0.00022191,2]
[356024319,1741804245612,-558.38852288,0.00022191,2]
[356024320,1741804245622,-500.0,0.00022191,2]
[356024321,1741804245632,-300.0,0.00022191,2]
[356024322,1741804245643,-500.0,0.00022191,2]
[356024323,1741804245652,-500.0,0.00022191,2]
[356024324,1741804245662,-500.0,0.00022191,2]
[356024325,1741804245672,-567.61,0.00022191,2]
[356024327,1741804245681,-500.0,0.00022191,2]
[356024328,1741804245691,-500.0,0.00022191,2]
[356024329,1741804245701,-500.0,0.00022191,2]
[356024330,1741804245710,-500.0,0.00022191,2]
[356024331,1741804245720,-500.0,0.00022191,2]
[356024332,1741804245730,-615.39,0.00022191,2]
[356024333,1741804245740,-500.0,0.00022191,2]
[356024334,1741804245749,-934.23,0.00022191,2]
[356024335,1741804245759,-500.0,0.00022191,2]
[356024336,1741804245769,-500.0,0.00022191,2]
[356024337,1741804245778,-500.0,0.00022191,2]
[356024338,1741804245788,-500.0,0.00022191,2]
[356024339,1741804245797,-500.0,0.00022191,2]
[356024340,1741804245807,-500.0,0.00022191,2]
[356024341,1741804245816,-953.28,0.00022191,2]
[356024342,1741804245827,-500.0,0.00022191,2]
[356024343,1741804245836,-500.0,0.00022191,2]
[356024344,1741804245845,-500.0,0.00022191,2]
[356024345,1741804245855,-500.0,0.00022191,2]
[356024346,1741804245865,-500.0,0.00022191,2]
[356024347,1741804245875,-500.0,0.00022191,2]
[356024348,1741804245885,-500.0,0.00022191,2]
[356024349,1741804245895,-244.09021737,0.00022191,2]
[356024350,1741804245905,-500.0,0.00022191,5]
[356024352,1741804245915,-500.0,0.00022191,2]
[356024354,1741804245926,-358.60827403,0.00022191,2]
[356024355,1741804245935,-500.0,0.00022191,2]
[356024356,1741804245945,-500.0,0.00022191,2]
[356024357,1741804245955,-500.0,0.00022191,2]
[356024358,1741804245966,-500.0,0.00022191,2]
[356024360,1741804245976,-500.0,0.00022191,2]
[356024362,1741804245986,-500.0,0.00022191,2]
[356024364,1741804245997,-500.0,0.00022191,2]
[356024366,1741804246007,-500.0,0.00022191,2]
[356024367,1741804246018,-500.0,0.00022191,2]
[356024369,1741804246027,-500.0,0.00022191,2]
[356024371,1741804246038,-500.0,0.00022191,2]
[356024372,1741804246049,-151.0,0.00022191,7]
[356024374,1741804246059,-500.0,0.00022191,2]
[356024376,1741804246069,-500.0,0.00022191,2]
[356024378,1741804246080,-500.0,0.00022191,2]
[356024379,1741804246089,-503.09,0.00022191,2]
[356024380,1741804246099,-500.0,0.00022191,2]
[356024381,1741804246109,-500.0,0.00022191,2]
[356024382,1741804246120,-500.0,0.00022191,2]
[356024384,1741804246129,-500.0,0.00022191,2]
[356024385,1741804246139,-1823.59,0.00022191,2]
[356024387,1741804246150,-1079.2,0.00022191,2]
[356024389,1741804246160,-500.0,0.00022191,2]
[356024391,1741804246170,-500.0,0.00022191,2]
[356024393,1741804246179,-500.0,0.00022191,2]
[356024394,1741804246189,-151.0,0.00022191,7]
[356024396,1741804246199,-500.0,0.00022191,2]
[356024398,1741804246209,-619.47092971,0.00022191,2]
[356024399,1741804246219,-500.0,0.00022191,2]
[356024400,1741804246229,-519.13,0.00022191,2]
[356024401,1741804246239,-500.0,0.00022191,2]
[356024402,1741804246248,-1879.28,0.00022191,2]
[356024403,1741804246258,-500.0,0.00022191,2]
[356024405,1741804246268,-584.69,0.00022191,2]
[356024407,1741804246277,-500.0,0.00022191,2]
[356024408,1741804246288,-500.0,0.00022191,2]
[356024409,1741804246297,-1161.91,0.00022191,2]
[356024410,1741804246307,-579.28231291,0.00022191,2]
[356024411,1741804246318,-1715.04,0.00022191,2]
[356024412,1741804246327,-500.0,0.00022191,2]
[356024413,1741804246338,-500.0,0.00022191,2]
[356024414,1741804246348,-151.0,0.00022191,7]
[356024415,1741804246357,-500.0,0.00022191,2]
[356024416,1741804246369,-1896.14,0.00022191,2]
[356024417,1741804246379,-500.0,0.00022191,2]
[356024418,1741804246389,-1122.11,0.00022191,2]
[356024419,1741804246399,-500.0,0.00022191,2]
[356024420,1741804246408,-500.0,0.00022191,2]
[356024421,1741804246419,-500.0,0.00022191,2]
[356024422,1741804246428,-500.0,0.00022191,2]
[356024423,1741804246438,-3093.84,0.00022191,2]
[356024424,1741804246448,-502.96139612,0.00022191,2]
[356024425,1741804246459,-500.0,0.00022191,2]
[356024426,1741804246469,-500.0,0.00022191,2]
[356024427,1741804246479,-500.0,0.00022191,2]
[356024428,1741804246489,-500.0,0.00022191,2]
[356024429,1741804246499,-500.0,0.00022191,2]
[356024430,1741804246510,-555.52,0.00022191,2]
[356024431,1741804246520,-500.0,0.00022191,2]
[356024432,1741804246530,-151.0,0.00022191,7]
[356024433,1741804246540,-500.0,0.00022191,2]
[356024434,1741804246554,-500.0,0.00022191,2]
[356024435,1741804246564,-500.0,0.00022191,2]
[356024436,1741804246575,-500.0,0.00022191,2]
[356024437,1741804246585,-500.0,0.00022191,2]
[356024438,1741804246596,-500.0,0.00022191,2]
[356024439,1741804246606,-500.0,0.00022191,2]
[356024440,1741804246617,-1822.278558,0.00022191,7]
[356024441,1741804246628,-151.0,0.00022191,7]
[356024442,1741804246638,-1822.278558,0.00022191,7]
[356024443,1741804246648,-500.0,0.00022191,2]
[356024444,1741804246657,-500.0,0.00022191,2]
[356024445,1741804246668,-500.0,0.00022191,2]
[356024446,1741804246678,-500.0,0.00022191,2]
[356024447,1741804246688,-500.0,0.00022191,2]
[356024448,1741804246698,-831.87,0.00022191,2]
[356024449,1741804246708,-975.749342,0.00022191,7]
[356024450,1741804246719,-500.0,0.00022191,2]
[356024451,1741804246728,-975.749342,0.00022191,7]
[356024452,1741804246738,-151.0,0.00022191,7]
[356024453,1741804246748,-500.0,0.00022191,2]
[356024454,1741804246758,-500.0,0.00022191,2]
[356024455,1741804246768,-2356.2,0.00022191,2]
[356024456,1741804246778,-500.0,0.00022191,2]
[356024457,1741804246788,-599.96821378,0.00022191,2]
[356024458,1741804246798,-509.94627412,0.00022191,2]
[356024459,1741804246808,-151.0,0.00022191,7]
[356024460,1741804246818,-500.0,0.00022191,2]
[356024461,1741804246828,-500.0,0.00022191,2]
[356024462,1741804246838,-500.0,0.00022191,2]
[356024463,1741804246848,-611.4,0.00022191,2]
[356024464,1741804246858,-500.0,0.00022191,2]
[356024465,1741804246869,-247.74631659,0.00022191,2]
[356024466,1741804246879,-1067.1,0.00022191,2]
[356024467,1741804246889,-151.0,0.00022191,7]
[356024468,1741804246899,-500.0,0.00022191,2]
[356024469,1741804246909,-7271.05,0.00022191,2]
[356024470,1741804246919,-161.672186,0.00022191,7]
[356024471,1741804246929,-151.0,0.00022191,7]
[356024472,1741804246939,-151.0,0.00022191,7]
[356024473,1741804246949,-161.672186,0.00022191,7]
[356024474,1741804246958,-1373.43,0.00022191,2]
[356024475,1741804246968,-1858.22,0.00022191,2]
[356024476,1741804246979,-151.0,0.00022191,7]
[356024477,1741804246988,-500.0,0.00022191,2]
[356024478,1741804246998,-500.0,0.00022191,2]
[356024479,1741804247009,-500.0,0.00022191,2]
[356024480,1741804247019,-500.0,0.00022191,2]
[356024481,1741804247029,-500.0,0.00022191,2]
[356024482,1741804247039,-500.0,0.00022191,2]
[356024483,1741804247049,-500.0,0.00022191,2]
[356024484,1741804247059,-945.95,0.00022191,2]
[356024485,1741804247069,-500.0,0.00022191,2]
[356024486,1741804247079,-632.65,0.00022191,2]
[356024487,1741804247298,-500.0,0.00022191,2]
[356024488,1741804247308,-151.0,0.00022191,7]
[356024489,1741804247318,-1083.81,0.00022191,2]
[356024490,1741804247328,-500.0,0.00022191,2]
[356024491,1741804247338,-509.3358538,0.00022191,2]
[356024492,1741804247348,-500.0,0.00022191,2]
[356024493,1741804247359,-2442.51,0.00022191,2]
[356024494,1741804247375,-500.0,0.00022191,2]
[356024495,1741804247386,-821.2,0.00022191,2]
[356024496,1741804247396,-500.0,0.00022191,2]
[356024497,1741804247406,-500.0,0.00022191,2]
[356024498,1741804247416,-500.0,0.00022191,2]
[356024499,1741804247426,-649.83,0.00022191,2]
[356024500,1741804247437,-151.0,0.00022191,7]
[356024501,1741804247447,-186.18517,0.00022191,7]
[356024502,1741804247457,-1186.49,0.00022191,2]
[356024503,1741804247467,-500.0,0.00022191,2]
[356024504,1741804247478,-940.96,0.00022191,2]
[356024505,1741804247488,-500.0,0.00022191,2]
[356024506,1741804247498,-151.0,0.00022191,7]
[356024507,1741804247507,-186.18517,0.00022191,7]
[356024508,1741804247517,-500.0,0.00022191,2]
[356024509,1741804247527,-605.28,0.00022191,2]
[356024510,1741804247537,-151.0,0.00022191,7]
[356024511,1741804247548,-500.0,0.00022191,2]
[356024512,1741804247559,-1030.38,0.00022191,2]
[356024513,1741804247569,-500.0,0.00022191,2]
[356024514,1741804247579,-151.0,0.00022191,7]
[356024515,1741804247591,-500.0,0.00022191,2]
[356024516,1741804247601,-969.48,0.00022191,2]
[356024517,1741804247611,-151.0,0.00022191,7]
[356024518,1741804247624,-151.0,0.00022191,7]
[356024519,1741804247633,-500.0,0.00022191,2]
[356024520,1741804247643,-500.0,0.00022191,2]
[356024521,1741804247652,-774.17,0.00022191,2]
[356024522,1741804247663,-1093.96,0.00022191,2]
[356024523,1741804247673,-1182.11,0.00022191,2]
[356024524,1741804247683,-1459.08,0.00022191,2]
[356024525,1741804247694,-151.0,0.00022191,7]
[356024526,1741804247704,-500.0,0.00022191,2]
[356024527,1741804247714,-151.0,0.00022191,7]
[356024528,1741804247724,-500.0,0.00022191,2]
[356024529,1741804247734,-1574.94,0.00022191,2]
[356024530,1741804247743,-582.30362288,0.00022191,2]
[356024531,1741804247753,-500.0,0.00022191,2]
[356024532,1741804247763,-509.16483294,0.00022191,2]
[356024533,1741804247773,-500.0,0.00022191,2]
[356024534,1741804247783,-500.0,0.00022191,2]
[356024535,1741804247793,-366.862674,0.00022191,7]
[356024536,1741804247803,-552.92,0.00022191,2]
[356024537,1741804247813,-366.862674,0.00022191,7]
[356024538,1741804247823,-4645.43,0.00022191,2]
[356024539,1741804247832,-500.0,0.00022191,2]
[356024540,1741804247842,-500.0,0.00022191,2]
[356024541,1741804247851,-500.0,0.00022191,2]
[356024542,1741804247861,-500.0,0.00022191,2]
[356024543,1741804247872,-1099.73,0.00022191,2]
[356024544,1741804247882,-500.0,0.00022191,2]
[356024545,1741804247891,-42322.16,0.00022191,2]
[356024546,1741804247901,-500.0,0.00022191,2]
[356024547,1741804247911,-500.0,0.00022191,2]
[356024548,1741804247920,-151.0,0.00022191,7]
[356024549,1741804247931,-1403.29,0.00022191,2]
[356024550,1741804247940,-500.0,0.00022191,2]
[356024551,1741804247950,-673.82,0.00022191,2]
[356024552,1741804247960,-1452.65,0.00022191,2]
[356024553,1741804247970,-1408.01,0.00022191,2]
[356024554,1741804247980,-166.9256084,0.00022191,2]
[356024555,1741804247990,-573.03,0.00022191,2]
[356024556,1741804248000,-963.85,0.00022191,2]
[356024557,1741804248009,-500.0,0.00022191,2]
[356024558,1741804248020,-500.0,0.00022191,2]
[356024559,1741804248031,-500.0,0.00022191,2]
[356024560,1741804248041,-2335.96,0.00022191,2]
[356024561,1741804248051,-16057.6,0.00022191,2]
[356024562,1741804248060,-500.0,0.00022191,2]
[356024563,1741804248071,-500.0,0.00022191,2]
[356024564,1741804248081,-580.0,0.00022191,2]
[356024565,1741804248091,-500.0,0.00022191,2]
[356024566,1741804248101,-500.0,0.00022191,2]
[356024567,1741804248111,-552.32441203,0.00022191,2]
[356024568,1741804248125,-500.0,0.00022191,2]
[356024569,1741804248135,-500.0,0.00022191,2]
[356024570,1741804248145,-1182.73,0.00022191,2]
[356024571,1741804248155,-154.911454,0.00022191,7]
[356024572,1741804248166,-500.0,0.00022191,2]
[356024573,1741804248176,-1205.53,0.00022191,2]
[356024574,1741804248186,-500.0,0.00022191,2]
[356024575,1741804248197,-500.0,0.00022191,2]
[356024576,1741804248207,-1336.03,0.00022191,2]
[356024577,1741804248217,-500.0,0.00022191,2]
[356024578,1741804248227,-500.0,0.00022191,2]
[356024579,1741804248238,-1517.5,0.00022191,2]
[356024580,1741804248248,-1485.14,0.00022191,2]
[356024581,1741804248258,-500.0,0.00022191,2]
[356024582,1741804248268,-500.0,0.00022191,2]
[356024583,1741804248278,-500.0,0.00022191,2]
[356024584,1741804248288,-500.0,0.00022191,2]
[356024585,1741804248298,-500.0,0.00022191,2]
[356024586,1741804248308,-3210.25,0.00022191,2]
[356024587,1741804248318,-500.0,0.00022191,2]
[356024588,1741804248328,-999.57,0.00022191,2]
[356024589,1741804248338,-500.0,0.00022191,2]
[356024590,1741804248348,-888.63,0.00022191,2]
[356024591,1741804248357,-500.0,0.00022191,2]
[356024592,1741804248369,-1685.25,0.00022191,2]
[356024593,1741804248379,-831.53,0.00022191,2]
[356024594,1741804248389,-500.0,0.00022191,2]
[356024595,1741804248399,-818.26,0.00022191,2]
[356024596,1741804248409,-500.0,0.00022191,2]
[356024597,1741804248419,-541.7,0.00022191,2]
[356024598,1741804248429,-160.0,0.00022191,7]
[356024599,1741804248438,-709.31,0.00022191,2]
[356024600,1741804248448,-2414.55,0.00022191,2]
[356024601,1741804248459,-1000.0,0.00022191,7]
[356024602,1741804248469,-3781.11,0.00022191,2]
[356024603,1741804248479,-500.0,0.00022191,2]
[356024604,1741804248489,-166.29440643,0.00022191,2]
[356024605,1741804248499,-2194.41,0.00022191,2]
[356024606,1741804248511,-610.44710715,0.00022191,2]
[356024607,1741804248522,-1148.91,0.00022191,2]
[356024608,1741804248532,-1103.67,0.00022191,2]
[356024609,1741804248542,-500.0,0.00022191,2]
[356024610,1741804248554,-1311.443614,0.00022191,7]
[356024611,1741804248564,-2784.48,0.00022191,2]
[356024612,1741804248574,-931.13,0.00022191,2]
[356024613,1741804248584,-1311.443614,0.00022191,7]
[356024614,1741804248595,-1892.94,0.00022191,2]
[356024615,1741804248604,-434.81598272,0.00022191,2]
[356024616,1741804248616,-1383.42,0.00022191,2]
[356024617,1741804248626,-214.10958853,0.00022191,2]
[356024618,1741804248636,-500.0,0.00022191,2]
[356024619,1741804248646,-151.0,0.00022191,7]
[356024620,1741804248656,-199.425255,0.00022191,7]
[356024621,1741804248667,-500.0,0.00022191,2]
[356024622,1741804248676,-199.425255,0.00022191,7]
[356024623,1741804248686,-500.0,0.00022191,2]
[356024624,1741804248696,-458.287251,0.00022191,7]
[356024625,1741804248706,-500.0,0.00022191,2]
[356024626,1741804248716,-458.287251,0.00022191,7]
[356024627,1741804248725,-1343.7,0.00022191,2]
[356024628,1741804248735,-500.0,0.00022191,2]
[356024629,1741804248745,-946.01,0.00022191,2]
[356024630,1741804248755,-745.32,0.00022191,2]
[356024631,1741804248765,-500.0,0.00022191,2]
[356024632,1741804248775,-655.4,0.00022191,2]
[356024633,1741804248784,-930.87,0.00022191,2]
[356024634,1741804248794,-161.58520475,0.00022191,2]
[356024635,1741804248804,-500.0,0.00022191,2]
[356024636,1741804248814,-500.0,0.00022191,2]
[356024637,1741804248824,-500.0,0.00022191,2]
[356024638,1741804248834,-209.609139,0.00022191,7]
[356024639,1741804248844,-151.0,0.00022191,7]
[356024640,1741804248854,-500.0,0.00022191,2]
[356024641,1741804248867,-209.609139,0.00022191,7]
[356024642,1741804248877,-686.54,0.00022191,2]
[356024643,1741804248887,-1962.14,0.00022191,2]
[356024644,1741804248897,-151.0,0.00022191,7]
[356024645,1741804248906,-2819.17,0.00022191,2]
[356024646,1741804248916,-500.0,0.00022191,2]
[356024647,1741804248926,-1445.89,0.00022191,2]
[356024648,1741804248935,-507.56381159,0.00022191,2]
[356024649,1741804248945,-500.0,0.00022191,2]
[356024650,1741804248955,-500.0,0.00022191,2]
[356024651,1741804248964,-500.0,0.00022191,2]
[356024652,1741804248974,-500.0,0.00022191,2]
[356024653,1741804248984,-500.0,0.00022191,2]
[356024654,1741804248994,-500.0,0.00022191,2]
[356024655,1741804249004,-996.16,0.00022191,2]
[356024656,1741804249014,-222.53599685,0.00022191,2]
[356024657,1741804249023,-500.0,0.00022191,2]
[356024658,1741804249033,-500.0,0.00022191,2]
[356024659,1741804249042,-500.0,0.00022191,2]
[356024660,1741804249052,-500.0,0.00022191,2]
[356024661,1741804249062,-772.1,0.00022191,2]
[356024662,1741804249071,-2046.27,0.00022191,2]
[356024663,1741804249081,-500.0,0.00022191,2]
[356024664,1741804249091,-500.0,0.00022191,2]
[356024665,1741804249101,-500.0,0.00022191,2]
[356024666,1741804249111,-500.0,0.00022191,2]
[356024667,1741804249122,-925.78,0.00022191,2]
[356024668,1741804249132,-500.0,0.00022191,2]
[356024669,1741804249144,-500.0,0.00022191,2]
[356024670,1741804249155,-500.0,0.00022191,2]
[356024671,1741804249165,-166.0,0.00022192,2]
[356024672,1741804249182,-1000.0,0.000223,23]
[356024673,1741804249199,-420.0,0.00022353,2]
[356024674,1741804249209,-15577.25547611,0.00022457,2]
[356024675,1741804249219,-160.0,0.00022457,2]
[356024676,1741804249229,-416.66666667,0.00022457,2]
[356024677,1741804249238,-160.0,0.00022457,2]
[356024678,1741804249248,-151.0,0.00022458,7]
[356024679,1741804249258,-151.0,0.00022458,7]
[356024680,1741804249267,-151.0,0.00022458,7]
[356024681,1741804249277,-151.0,0.00022458,7]
[356024682,1741804249287,-151.0,0.00022458,7]
[356024683,1741804249297,-151.0,0.00022458,7]
[356024684,1741804249307,-151.0,0.00022458,7]
[356024685,1741804249316,-151.0,0.00022458,7]
[356024686,1741804249326,-514.42574906,0.00022465,2]
[356024687,1741804249336,-500.0,0.00022465,2]
[356024688,1741804249345,-721.84,0.00022465,2]
[356024689,1741804249355,-500.0,0.00022465,2]
[356024690,1741804249364,-500.0,0.00022465,2]
[356024691,1741804249375,-500.0,0.00022465,2]
[356024692,1741804249385,-500.0,0.00022465,2]
[356024693,1741804249394,-500.0,0.00022465,2]
[356024694,1741804249404,-500.0,0.00022465,2]
[356024695,1741804249413,-500.0,0.00022465,2]
[356024696,1741804249424,-500.0,0.00022465,2]
[356024697,1741804249433,-500.0,0.00022465,2]
[356024698,1741804249443,-685.26,0.00022465,2]